bitfinex-derivatives/quotes_SOLF0:USTF0_20250919
["timestamp","ask_amount","ask_price","bid_price","bid_amount"]
[1758294487156,178.01174192,236.16,236.13,4.216]
[1758294487363,178.01174192,236.16,236.14,3.51802799]
[1758294487559,316.093,236.18,236.03,3.40658264]
[1758294487758,245.97674192,236.17,236.01,3.40658264]
[1758294487959,3.79674192,236.06,235.99,3.40658264]
[1758294488153,3.79674192,236.07,236.05,3.40658264]
[1758294488352,186.88,236.06,236.02,3.40658264]
[1758294488554,186.62,236.08,236.01,3.40658264]
[1758294488859,59.2563,236.15,236.04,7.62258264]
[1758294489065,58.43638384,236.13,236.05,7.62258264]
[1758294489264,53.81912576,236.13,236.05,4.216]
[1758294489467,7.60714192,236.08,236.05,4.216]
[1758294489657,3.40014192,236.08,236.05,4.216]
[1758294489962,7.60744192,236.06,235.99,4.216]
[1758294490162,7.19718384,236.06,235.99,7.62258264]
[1758294490364,59.2755,236.07,236.01,3.40658264]
[1758294490562,3.79674192,236.05,236.01,3.40658264]
[1758294490861,168.988,236.04,236.01,3.40658264]
[1758294491164,185.5,236.03,236.01,3.40658264]
[1758294491465,172.879,236.03,235.98,4.58210574]
[1758294491665,3.79674192,236.05,235.99,4.58210574]
[1758294491868,3.79674192,236.07,235.99,4.58210574]
[1758294492261,7.60724192,236.07,236.06,3.52957868]
[1758294492561,188.35674192,236.07,235.98,4.99236382]
[1758294492861,180.353,236.06,235.98,4.99236382]
[1758294493066,179.9567,236.06,235.98,0.41025808]
[1758294493764,6.22845075,236.11,236.01,0.41025808]
[1758294494060,183.72375624,236.1,236.03,0.41025808]
[1758294494260,179.889,236.1,236.03,0.41025808]
[1758294494465,179.889,236.1,235.96,7.08]
[1758294494669,179.889,236.1,236.01,0.41025808]
[1758294494867,179.889,236.1,236.0,0.41025808]
[1758294495069,3.8106,236.07,236.0,0.41025808]
[1758294495271,59.2731,236.08,235.88,7.08]
[1758294495470,6.22845075,236.09,235.99,0.41025808]
[1758294495668,183.08,236.08,235.99,0.41025808]
[1758294495866,6.22845075,236.09,235.94,7.08]
[1758294496067,2.01745075,236.09,236.0,0.41025808]
[1758294496268,6.22845075,236.15,236.03,0.41025808]
[1758294496574,6.22845075,236.15,235.94,11.66210574]
[1758294496875,186.5095,236.14,236.06,0.41025808]
[1758294497376,3.8097,236.12,236.06,0.41025808]
[1758294497872,10.03765075,236.15,236.06,0.41025808]
[1758294498173,182.14,236.14,236.0,7.08]
[1758294498368,177.929,236.14,236.07,0.41025808]
[1758294498569,2.01745075,236.15,236.07,0.41025808]
[1758294498866,181.62,236.14,236.07,0.41025808]
[1758294499077,3.8095,236.14,236.07,0.41025808]
[1758294499369,2.01745075,236.15,236.08,0.41025808]
[1758294499575,3.8084,236.21,236.11,0.41025808]
[1758294499873,181.4,236.2,236.12,3.48606987]
[1758294500068,326.60845075,236.24,236.13,3.48606987]
[1758294500287,181.0,236.23,236.14,3.48606987]
[1758294500572,176.789,236.23,236.15,3.48606987]
[1758294500769,176.789,236.23,236.16,3.48606987]
[1758294501071,176.789,236.23,236.17,3.48606987]
[1758294501266,180.82,236.22,236.18,3.48606987]
[1758294501466,180.82,236.22,236.19,3.48606987]
[1758294501771,3.8084,236.21,236.15,0.41025808]
[1758294501970,180.82,236.22,236.16,3.54824599]
[1758294502171,176.609,236.22,236.05,7.08]
[1758294502376,326.60845075,236.24,236.13,0.41025808]
[1758294502568,326.60845075,236.24,236.14,3.55056108]
[1758294502569,180.0,236.21,236.14,3.55056108]
[1758294502870,3.8091,236.16,236.15,3.55056108]
[1758294503383,3.8091,236.16,236.05,7.08]
[1758294503668,3.8091,236.16,236.11,0.41025808]
[1758294503875,3.8091,236.16,236.12,3.52793005]
[1758294504062,234.6284,236.21,236.1,0.41025808]
[1758294504269,175.3871,236.21,236.11,3.52941822]
[1758294504464,175.3871,236.21,236.12,3.52941822]
[1758294504667,3.8092,236.16,236.13,3.52941822]
[1758294504873,3.8092,236.16,236.11,0.41025808]
[1758294505072,175.3871,236.21,236.13,0.41025808]
[1758294505277,3.8089,236.18,236.05,7.08]
[1758294505469,175.3871,236.21,236.11,0.41025808]
[1758294505668,175.3871,236.21,236.12,3.53192811]
[1758294505868,174.8871,236.21,236.13,3.53192811]
[1758294506069,171.1761,236.21,236.05,7.08]
[1758294506277,162.7581,236.21,236.12,0.41025808]
[1758294506475,162.7581,236.21,236.13,3.53380692]
[1758294506677,162.7581,236.21,236.14,3.53380692]
[1758294506975,326.60845075,236.24,236.15,3.53380692]
[1758294507268,320.38,236.24,236.18,0.41025808]
[1758294507476,320.38,236.24,236.19,3.944065]
[1758294507671,320.38,236.24,236.2,3.53380692]
[1758294507972,320.38,236.24,236.06,59.2765]
[1758294507973,176.64,236.23,236.05,7.08]
[1758294508168,241.99916597,236.23,236.05,7.08]
[1758294508365,3.8091,236.17,236.05,7.08]
[1758294508573,59.238,236.22,236.11,0.41025808]
[1758294508875,177.28,236.21,236.15,0.41025808]
[1758294509671,3.8086,236.2,236.15,0.41025808]
[1758294509976,3.8086,236.2,236.07,3.8105]
[1758294510178,176.8776,236.21,236.16,0.41025808]
[1758294510378,176.8776,236.21,236.17,0.41025808]
[1758294510579,176.48,236.2,236.11,6.67]
[1758294510768,176.48,236.2,236.14,0.41025808]
[1758294510976,176.48,236.2,236.0,6.67]
[1758294511175,3.8095,236.14,236.1,0.41025808]
[1758294511372,176.18,236.13,236.08,0.41025808]
[1758294511669,128.08676597,236.23,236.01,59.2898]
[1758294511670,6.22845075,236.23,236.01,59.2898]
[1758294511870,6.22845075,236.23,236.02,6.67]
[1758294512081,65.45005075,236.29,236.1,6.67]
[1758294512281,3.8071,236.29,236.1,6.67]
[1758294512472,63.26497189,236.33,236.23,0.41025808]
[1758294512473,175.74,236.25,236.23,0.41025808]
[1758294512677,175.74,236.25,236.1,59.2667]
[1758294512678,63.26497189,236.33,236.17,6.67]
[1758294512881,0.23733192,236.28,236.27,6.67]
[1758294513178,0.23733192,236.28,236.15,63.83580574]
[1758294513379,0.23733192,236.28,236.16,6.67]
[1758294513583,0.23733192,236.28,236.21,3.8081]
[1758294513787,59.1741,236.48,236.22,6.67]
[1758294514081,175.18,236.47,236.22,6.67]
[1758294514376,175.18,236.47,236.19,63.82590574]
[1758294514377,175.14,236.46,236.25,6.67]
[1758294514579,65.39465075,236.51,236.24,59.2327]
[1758294514580,6.22845075,236.51,236.29,6.67]
[1758294514779,324.1033,236.52,236.3,59.2176]
[1758294514977,320.3,236.52,236.31,6.67]
[1758294515176,174.8,236.51,236.31,6.67]
[1758294515485,174.8,236.51,236.36,6.67]
[1758294515870,320.3,236.52,236.36,6.67]
[1758294516070,174.24,236.51,236.36,6.67]
[1758294516276,174.24,236.5,236.36,6.67]
[1758294516575,320.3,236.52,236.38,6.67]
[1758294516770,173.96,236.54,236.39,6.67]
[1758294516970,173.96,236.54,236.44,6.67]
[1758294518677,63.30833638,236.56,236.44,6.67]
[1758294519178,63.30833638,236.56,236.32,10.81055649]
[1758294519179,0.42,236.55,236.23,4.58210574]
[1758294519374,0.42,236.55,235.98,187.04527188]
[1758294519375,65.43985075,236.33,236.05,59.2791]
[1758294519576,177.88,236.32,236.06,6.67]
[1758294519875,385.55985075,236.33,236.04,59.2806]
[1758294519876,177.92,236.31,236.11,6.67]
[1758294520079,326.34845075,236.33,236.12,3.5670567]
[1758294520383,320.12,236.33,236.14,6.67]
[1758294520583,177.62,236.32,236.15,3.5670567]
[1758294520880,177.62,236.32,236.16,3.5670567]
[1758294521182,177.62,236.32,236.17,3.5670567]
[1758294521482,177.62,236.32,236.18,3.5670567]
[1758294521675,320.12,236.33,236.19,3.5670567]
[1758294521872,177.06,236.32,236.2,3.5670567]
[1758294522075,177.06,236.32,236.14,6.67]
[1758294522076,177.06,236.32,236.21,3.5670567]
[1758294522277,0.73701488,236.3,236.14,6.67]
[1758294522478,0.73701488,236.3,236.15,3.53034481]
[1758294522685,0.73701488,236.3,236.14,6.67]
[1758294522686,0.73701488,236.3,236.16,3.53034481]
[1758294522880,176.68,236.29,236.17,3.53034481]
[1758294523186,176.4,236.28,236.18,3.53034481]
[1758294523387,176.4,236.28,236.19,3.53034481]
[1758294523682,0.73701488,236.3,236.2,10.20034481]
[1758294523983,0.73701488,236.3,236.21,3.53034481]
[1758294524179,0.73701488,236.3,236.22,3.53034481]
[1758294524481,0.73701488,236.3,236.2,6.67]
[1758294524482,0.73701488,236.3,236.23,3.53034481]
[1758294524689,0.73701488,236.3,236.24,3.53034481]
[1758294524881,0.73701488,236.3,236.25,3.53034481]
[1758294525080,0.73701488,236.3,236.2,6.67]
[1758294525081,0.73701488,236.3,236.26,3.53034481]
[1758294525286,0.73701488,236.3,236.27,3.53034481]
[1758294525488,0.73701488,236.3,236.28,3.53034481]
[1758294525683,0.73701488,236.3,236.2,6.67]
[1758294525894,0.73701488,236.3,236.21,3.52860841]
[1758294526192,0.73701488,236.3,236.24,6.67]
[1758294526378,0.73701488,236.3,236.25,3.52860841]
[1758294526582,0.73701488,236.3,236.27,6.67]
[1758294526783,0.73701488,236.3,236.29,6.67]
[1758294526979,0.73701488,236.3,236.29,10.19860841]
[1758294527989,0.73701488,236.3,236.29,3.52860841]
[1758294528591,0.73701488,236.3,236.21,6.67]
[1758294528783,0.73701488,236.3,236.22,3.52690079]
[1758294528979,0.73701488,236.3,236.23,3.52690079]
[1758294529178,0.73701488,236.3,236.24,3.52690079]
[1758294529378,0.73701488,236.3,236.22,3.8081]
[1758294529379,0.73701488,236.3,236.25,10.19690079]
[1758294529580,0.73701488,236.3,236.26,10.19690079]
[1758294529785,0.73701488,236.3,236.27,3.52690079]
[1758294529981,0.73701488,236.3,236.28,3.52690079]
[1758294530185,0.73701488,236.3,236.29,3.52690079]
[1758294531186,0.73701488,236.3,236.29,3.52699921]
[1758294531991,173.01701488,236.3,236.19,6.67]
[1758294532191,173.01701488,236.3,236.2,3.52717242]
[1758294532391,173.01701488,236.3,236.21,3.52717242]
[1758294532581,173.01701488,236.3,236.22,3.52717242]
[1758294532782,0.73701488,236.3,236.23,3.52717242]
[1758294532991,0.73701488,236.3,236.24,3.52717242]
[1758294533193,0.73701488,236.3,236.26,6.67]
[1758294533491,0.73701488,236.3,236.27,3.52717242]
[1758294533690,0.73701488,236.3,236.28,3.52717242]
[1758294533887,0.73701488,236.3,236.29,3.52717242]
[1758294534685,0.73701488,236.3,236.29,10.19717242]
[1758294535286,0.12434036,236.3,236.29,10.19717242]
[1758294535487,3.8051,236.41,236.29,10.19717242]
[1758294535683,3.8051,236.41,236.3,3.52717242]
[1758294535890,170.66,236.4,236.31,3.52717242]
[1758294536192,170.52,236.39,236.32,3.52717242]
[1758294536395,170.52,236.39,236.33,3.52717242]
[1758294536595,1371.98,236.47,236.34,3.52717242]
[1758294536786,59.1804,236.45,236.35,3.52717242]
[1758294537090,170.1,236.44,236.29,6.67]
[1758294537296,169.96,236.43,236.3,3.51082161]
[1758294537492,59.164,236.52,236.31,3.51082161]
[1758294537799,59.1702,236.49,236.32,3.51082161]
[1758294537996,59.1702,236.49,236.33,3.51082161]
[1758294538190,169.56,236.48,236.34,3.51082161]
[1758294538399,169.56,236.47,236.35,10.14082161]
[1758294538684,0.73665605,236.46,236.36,3.51082161]
[1758294538884,169.42,236.45,236.37,3.51082161]
[1758294539085,0.73665605,236.46,236.23,59.2339]
[1758294539086,0.73665605,236.46,236.39,3.8053]
[1758294539289,0.73665605,236.46,236.4,3.51082161]
[1758294539488,0.73665605,236.46,236.41,3.51082161]
[1758294539695,0.73665605,236.46,236.42,10.78082161]
[1758294539895,0.31533071,236.46,236.43,3.51082161]
[1758294540198,168.92,236.56,236.46,3.8042]
[1758294540393,168.92,236.56,236.47,3.51082161]
[1758294540590,1691.68,236.66,236.48,3.51082161]
[1758294540786,1691.68,236.66,236.49,7.31442161]
[1758294540995,320.02,236.66,236.5,10.78082161]
[1758294541192,320.02,236.66,236.51,3.51082161]
[1758294541400,320.02,236.66,236.52,3.51082161]
[1758294541702,168.4,236.7,236.57,59.1499]
[1758294541890,168.38,236.77,236.64,59.1314]
[1758294542090,168.38,236.77,236.67,59.1251]
[1758294542294,320.0,236.83,236.68,10.77983148]
[1758294542490,320.0,236.83,236.69,3.50983148]
[1758294542799,168.22,236.88,236.7,10.77983148]
[1758294542996,3.7974,236.89,236.71,3.50983148]
[1758294543295,0.7353485,236.8,236.73,7.27]
[1758294543500,167.96,236.9,236.74,3.50983148]
[1758294543698,167.96,236.9,236.75,3.50983148]
[1758294543894,59.0644,236.92,236.77,7.27]
[1758294543895,0.73524751,236.81,236.77,7.27]
[1758294544197,167.74,236.92,236.78,3.50983148]
[1758294544498,0.73515432,236.83,236.79,3.50983148]
[1758294544698,167.46,236.94,236.81,7.27]
[1758294544899,0.73506891,236.89,236.82,3.50983148]
[1758294545096,0.73506891,236.89,236.83,3.50983148]
[1758294545295,0.73506891,236.89,236.84,3.50983148]
[1758294545502,0.73506891,236.89,236.86,7.27]
[1758294545797,59.0483,236.98,236.87,3.50983148]
[1758294545990,62.8445,236.98,236.81,7.27]
[1758294546194,166.8,236.97,236.82,3.48011215]
[1758294546395,166.8,236.97,236.83,3.47462076]
[1758294546602,170.5961,236.97,236.84,3.47455248]
[1758294546797,107.85910851,236.99,236.86,7.27]
[1758294547005,107.85910851,236.99,236.87,3.474478]
[1758294547307,107.85910851,236.99,236.88,3.474478]
[1758294547596,107.85910851,236.99,236.86,7.27]
[1758294547597,107.85910851,236.99,236.89,62.51381651]
[1758294547803,107.85910851,236.99,236.9,10.71401651]
[1758294548003,319.86,237.03,236.91,3.44401651]
[1758294548207,59.0034,237.16,236.91,59.0651]
[1758294548392,166.16,237.15,236.93,59.0588]
[1758294548598,166.16,237.15,236.95,59.0553]
[1758294548798,319.68,237.18,236.97,59.0492]
[1758294549001,0.73444837,237.1,236.98,10.70664511]
[1758294549202,166.0,237.17,236.98,7.27]
[1758294549396,319.68,237.18,236.98,7.27]
[1758294549701,319.68,237.18,236.93,59.0587]
[1758294549702,0.73445612,237.08,237.0,7.27]
[1758294549906,485.54,237.18,237.0,7.27]
[1758294550203,0.73437088,237.14,237.01,62.8354]
[1758294550603,0.73437088,237.14,237.0,7.27]
[1758294551907,0.73437088,237.14,237.02,7.27]
[1758294553202,0.73437088,237.14,237.04,7.27]
[1758294554806,0.73437088,237.14,237.04,66.3006]
[1758294555003,0.73437088,237.14,237.04,7.27]
[1758294555812,0.73437088,237.14,237.08,7.27]
[1758294556414,3.76577334,237.32,237.08,7.27]
[1758294556710,163.44,237.28,237.08,7.27]
[1758294556905,3.76577334,237.34,237.08,66.2928]
[1758294557111,163.2,237.3,237.09,7.27]
[1758294557311,3.76577334,237.29,237.09,7.27]
[1758294558014,62.74917334,237.24,237.03,7.27]
[1758294558203,221.7659,237.23,237.03,7.27]
[1758294558403,58.9908,237.21,237.03,7.27]
[1758294558911,3.7924,237.2,237.03,7.27]
[1758294559310,3.7724,237.2,237.03,7.27]
[1758294559612,162.52,237.19,237.03,7.27]
[1758294559814,0.73436313,237.16,237.03,7.27]
[1758294560110,0.73436313,237.16,236.95,7.27]
[1758294560507,3.76577334,237.13,236.95,7.27]
[1758294560704,59.0136,237.12,236.95,7.27]
[1758294560905,59.0136,237.12,236.88,59.072]
[1758294560906,59.0159,237.11,236.88,66.342]
[1758294561510,161.7,237.1,236.9,59.0679]
[1758294562312,165.494,237.1,236.88,7.27]
[1758294562511,165.494,237.1,236.89,59.0703]
[1758294562916,165.494,237.1,236.88,7.27]
[1758294563212,0.73436313,237.16,236.96,59.0527]
[1758294563415,160.72,237.15,236.97,59.0495]
[1758294564603,160.72,237.15,236.98,59.0468]
[1758294564807,160.72,237.15,236.99,59.0451]
[1758294565008,160.7,237.14,236.97,59.0495]
[1758294565209,0.73436313,237.16,237.01,59.0395]
[1758294565406,160.1,237.14,237.01,59.0395]
[1758294565606,160.1,237.14,237.04,3.7948]
[1758294566114,0.73436313,237.16,237.03,59.0336]
[1758294566315,160.29436313,237.16,237.06,3.7945]
[1758294566517,0.73436313,237.16,237.06,3.7945]
[1758294566816,0.73436313,237.16,237.06,11.0645]
[1758294567714,0.73436313,237.16,237.06,7.27]
[1758294568517,0.73436313,237.16,237.09,59.0201]
[1758294568911,0.73436313,237.16,237.11,3.7937]
[1758294569110,0.73436313,237.16,237.12,7.13]
[1758294569318,0.73436313,237.16,237.11,59.0152]
[1758294569711,0.73436313,237.16,237.13,7.13]
[1758294569915,0.73436313,237.16,237.13,10.9235]
[1758294570118,0.73436313,237.16,237.14,7.13]
[1758294570314,0.73436313,237.16,237.12,59.0125]
[1758294570516,0.73436313,237.16,237.14,7.13]
[1758294570719,0.73436313,237.16,237.12,59.0125]
[1758294570921,0.73436313,237.16,237.13,7.13]
[1758294571319,157.68,237.41,237.22,58.9875]
[1758294571616,157.68,237.41,237.21,7.13]
[1758294571617,3.76577334,237.37,237.21,7.13]
[1758294571920,3.76577334,237.37,237.24,3.7917]
[1758294572321,157.68,237.41,237.24,3.7917]
[1758294572718,3.76577334,237.42,237.24,3.7917]
[1758294572918,1431.7438,237.47,237.24,3.7917]
[1758294572919,33.23249115,237.48,237.33,66.0896]
[1758294573117,33.23249115,237.48,237.38,58.9483]
[1758294573422,3.76577334,237.55,237.36,7.13]
[1758294573814,58.9092,237.54,237.3,7.13]
[1758294574017,3.7873,237.53,237.32,3.7904]
[1758294574220,157.4,237.52,237.31,58.9657]
[1758294574522,0.73337267,237.48,237.32,58.9629]
[1758294574723,0.73337267,237.48,237.34,3.79]
[1758294575122,0.73337267,237.48,237.36,3.7897]
[1758294576121,0.73337267,237.48,237.34,7.13]
[1758294576326,3.76577334,237.47,237.28,7.13]
[1758294576526,0.73337267,237.48,237.28,7.13]
[1758294576821,156.76,237.47,237.29,58.9692]
[1758294577021,156.76,237.47,237.31,66.0943]
[1758294577217,156.76,237.47,237.35,3.7899]
[1758294577426,156.76,237.47,237.31,7.13]
[1758294578429,0.73337267,237.48,237.31,10.9206]
[1758294578622,156.2,237.47,237.31,10.9206]
[1758294579128,156.2,237.47,237.31,7.13]
[1758294579833,3.76577334,237.46,237.25,7.13]
[1758294580730,7.55407334,237.46,237.25,7.13]
[1758294581130,155.36,237.45,237.29,3.7908]
[1758294581826,0.73337267,237.48,237.31,58.966]
[1758294582028,155.14,237.44,237.31,58.966]
[1758294582221,155.14,237.44,237.32,3.7905]
[1758294583234,154.5,237.43,237.32,3.7905]
[1758294583630,154.4,237.43,237.32,3.7905]
[1758294583833,0.73337267,237.48,237.34,3.7901]
[1758294584034,154.28,237.47,237.34,3.7901]
[1758294584329,0.73337267,237.48,237.35,7.13]
[1758294584330,154.18,237.46,237.35,7.13]
[1758294584528,154.18,237.46,237.3,3.7908]
[1758294585130,3.76577334,237.47,237.32,3.7904]
[1758294585326,318.72,237.66,237.37,7.13]
[1758294585532,58.9014,237.58,237.37,7.13]
[1758294585730,0.73335722,237.45,237.3,7.13]
[1758294585934,151.84,237.44,237.31,3.45026532]
[1758294586127,318.72,237.45,237.32,3.45026532]
[1758294586330,3.76577334,237.56,237.35,58.9562]
[1758294586529,318.7,237.55,237.36,10.58701469]
[1758294586735,124.0,237.57,237.4,3.7891]
[1758294586936,473.3,237.56,237.4,3.7891]
[1758294587138,473.18,237.55,237.36,7.13]
[1758294587337,0.7332336,237.53,237.37,3.45677512]
[1758294587539,154.38,237.52,237.36,7.13]
[1758294587836,3.76577334,237.5,237.3,58.9684]
[1758294588037,3.76577334,237.5,237.31,10.58982101]
[1758294588240,154.18,237.49,237.32,3.45982101]
[1758294588437,154.18,237.49,237.34,3.79]
[1758294588739,154.1,237.48,237.35,3.45982101]
[1758294588929,154.1,237.48,237.36,3.45982101]
[1758294589128,153.74,237.47,237.36,3.7898]
[1758294589334,153.74,237.47,237.37,3.46576518]
[1758294589538,3.76577334,237.46,237.31,7.13]
[1758294589835,3.76577334,237.46,237.24,66.1125]
[1758294590136,3.76577334,237.46,237.25,3.46625663]
[1758294590337,3.76577334,237.46,237.26,3.46625663]
[1758294590532,3.7886,237.44,237.28,3.7911]
[1758294590729,153.32,237.43,237.29,3.46625663]
[1758294590929,3.76577334,237.46,237.3,3.46625663]
[1758294591134,153.18,237.42,237.24,7.13]
[1758294591329,153.18,237.42,237.25,3.468509]
[1758294591534,153.18,237.42,237.27,3.7912]
[1758294591739,153.18,237.41,237.28,3.468509]
[1758294591940,152.86,237.4,237.29,3.468509]
[1758294592141,3.76577334,237.45,237.3,3.468509]
[1758294592440,3.76577334,237.45,237.31,3.468509]
[1758294592635,3.76577334,237.45,237.32,3.468509]
[1758294592842,152.54,237.44,237.33,3.468509]
[1758294593035,152.54,237.44,237.29,3.7909]
[1758294593240,152.42,237.43,237.3,3.4698176]
[1758294593440,3.76577334,237.45,237.31,3.4698176]
[1758294593441,3.7886,237.44,237.31,3.4698176]
[1758294593638,152.16,237.43,237.32,3.4698176]
[1758294593835,152.16,237.43,237.24,10.55692791]
[1758294593836,3.76577334,237.45,237.24,7.13]
[1758294594038,152.16,237.44,237.25,3.47171085]
[1758294594234,3.789,237.42,237.26,3.47171085]
[1758294594432,3.789,237.42,237.27,3.47171085]
[1758294594638,151.84,237.41,237.28,3.47171085]
[1758294594834,3.789,237.42,237.29,3.47171085]
[1758294595040,3.789,237.42,237.3,3.47171085]
[1758294595239,3.789,237.42,237.31,3.47325717]
[1758294595546,151.64,237.41,237.26,3.7913]
[1758294595743,151.52,237.4,237.27,3.47321076]
[1758294596042,3.7899,237.36,237.2,3.7923]
[1758294596236,318.68,237.35,237.21,3.47341202]
[1758294596541,151.26,237.34,237.22,3.47341202]
[1758294596735,151.26,237.34,237.18,66.1265]
[1758294596935,318.68,237.35,237.18,66.1265]
[1758294597243,151.2,237.34,237.18,66.1265]
[1758294597435,318.68,237.35,237.18,66.1265]
[1758294597830,318.68,237.35,237.22,3.792]
[1758294598030,63.1441,237.47,237.22,7.13]
[1758294598031,150.88,237.34,237.22,7.13]
[1758294598242,318.7,237.36,237.22,7.13]
[1758294598835,150.6,237.35,237.26,3.7913]
[1758294599240,150.5,237.34,237.26,3.7913]
[1758294600040,318.7,237.36,237.23,58.985]
[1758294600239,3.76577334,237.47,237.27,6.69]
[1758294600449,34.3401718,237.52,237.28,58.973]
[1758294600450,318.7,237.43,237.28,58.973]
[1758294600645,89.72,237.42,237.27,6.69]
[1758294600949,318.7,237.43,237.27,65.6648]
[1758294601144,318.7,237.43,237.29,58.9706]
[1758294601342,318.7,237.43,237.32,6.69]
[1758294601537,318.7,237.43,237.33,58.9612]
[1758294601738,318.7,237.43,237.36,58.9537]
[1758294602042,149.64,237.42,237.36,58.9537]
[1758294602244,149.58,237.43,237.36,58.9537]
[1758294602442,149.48,237.43,237.34,6.69]
[1758294602638,318.7,237.52,237.35,58.9559]
[1758294602844,318.7,237.52,237.38,3.7894]
[1758294602845,149.4,237.51,237.38,3.7894]
[1758294603046,149.3,237.5,237.36,58.9537]
[1758294603247,318.7,237.52,237.37,6.69]
[1758294603546,0.7332336,237.53,237.37,6.69]
[1758294603547,0.7332336,237.53,237.38,58.948]
[1758294603736,0.7332336,237.53,237.37,6.69]
[1758294603943,0.7332336,237.53,237.41,3.7889]
[1758294604139,0.7332336,237.53,237.4,6.69]
[1758294604348,148.84,237.52,237.42,6.69]
[1758294604545,0.7332336,237.53,237.44,65.6237]
[1758294604744,149.5932336,237.53,237.44,65.6237]
[1758294604941,149.4932336,237.53,237.44,6.69]
[1758294605245,0.7332336,237.53,237.44,6.69]
[1758294605649,0.7332336,237.53,237.38,6.69]
[1758294606043,0.7332336,237.53,237.4,3.7891]
[1758294606547,3.7875,237.51,237.34,3.7901]
[1758294606847,148.36,237.52,237.32,6.69]
[1758294607048,3.76577334,237.51,237.32,6.69]
[1758294607346,58.92,237.5,237.32,6.69]
[1758294607539,58.92,237.5,237.3,3.7907]
[1758294607540,3.76577334,237.46,237.3,3.7907]
[1758294607744,322.38577334,237.46,237.26,6.69]
[1758294607947,3.7886,237.44,237.27,3.7912]
[1758294608644,147.7,237.43,237.27,3.7912]
[1758294608839,147.7,237.42,237.27,3.7912]
[1758294609038,3.76577334,237.41,237.2,58.9935]
[1758294609348,147.5,237.4,237.2,58.9935]
[1758294609549,3.76577334,237.41,237.2,58.9935]
[1758294609740,147.52,237.4,237.22,58.9881]
[1758294610043,7.55487334,237.41,237.19,6.69]
[1758294610044,3.76577334,237.41,237.19,6.69]
[1758294610246,147.5,237.4,237.19,6.69]
[1758294610646,3.76577334,237.41,237.19,6.69]
[1758294610850,147.2,237.4,237.19,6.69]
[1758294611044,3.76577334,237.41,237.2,58.9914]
[1758294611344,3.76577334,237.41,237.23,58.9856]
[1758294611648,147.06,237.4,237.22,6.69]
[1758294611960,147.06,237.39,237.25,3.7915]
[1758294612346,3.76577334,237.41,237.25,3.7915]
[1758294612547,146.68,237.4,237.25,3.7915]
[1758294613049,150.4693,237.4,237.22,10.482]
[1758294613244,146.68,237.4,237.22,10.482]
[1758294613444,146.68,237.4,237.22,6.69]
[1758294613644,146.36,237.39,237.22,6.69]
[1758294613844,146.36,237.38,237.22,6.69]
[1758294614448,150.1496,237.38,237.22,6.69]
[1758294615647,6.16223527,237.41,237.24,3.7916]
[1758294615852,145.7,237.4,237.27,65.6649]
[1758294616047,145.7,237.4,237.27,6.69]
[1758294616347,145.7,237.4,237.2,6.69]
[1758294618152,124.0,237.39,237.2,6.69]
[1758294618348,124.0,237.39,237.23,65.6747]
[1758294618549,145.24,237.38,237.23,6.69]
[1758294618745,328.99823527,237.46,237.23,6.69]
[1758294618951,4.216,237.44,237.23,6.69]
[1758294619453,149.476,237.43,237.24,3.7916]
[1758294619651,149.476,237.43,237.23,6.69]
[1758294619846,3.7892,237.4,237.23,6.69]
[1758294620046,124.0,237.42,237.23,6.69]
[1758294620647,3.7891,237.41,237.24,3.7917]
[1758294620854,145.26,237.4,237.24,3.7917]